fUSD/lending_fUSD_20251225
["ID","MTS","AMOUNT","RATE_DAILY","PERIOD"]
[399733506,1766641852360,-500.0,0.00016999,2]
[399733507,1766641852370,-500.0,0.00016999,2]
[399733508,1766641852379,-296.93519622,0.00016999,2]
[399733509,1766641852392,-782.38,0.00016999,2]
[399733510,1766641852403,-782.38,0.00016999,2]
[399733511,1766641852413,-782.38,0.00016999,2]
[399733512,1766641852423,-782.38,0.00016999,2]
[399733513,1766641852435,-782.38,0.00016999,2]
[399733514,1766641852446,-782.38,0.00016999,2]
[399733515,1766641852455,-782.38,0.00016999,2]
[399733516,1766641852466,-782.38,0.00016999,2]
[399733517,1766641852476,-782.38,0.00016999,2]
[399733518,1766641852486,-782.38,0.00016999,2]
[399733519,1766641852496,-782.38,0.00016999,2]
[399733520,1766641852506,-782.38,0.00016999,2]
[399733521,1766641852516,-782.38,0.00016999,2]
[399733522,1766641852526,-782.50826677,0.00016999,2]
[399733523,1766641852536,-500.0,0.00016999,2]
[399733524,1766641852547,-500.0,0.00016999,2]
[399733525,1766641852557,-500.0,0.00016999,2]
[399733526,1766641852567,-500.0,0.00016999,2]
[399733527,1766641852578,-500.0,0.00016999,2]
[399733528,1766641852589,-500.0,0.00016999,2]
[399733529,1766641852599,-500.0,0.00016999,2]
[399733530,1766641852609,-500.0,0.00016999,2]
[399733531,1766641852621,-500.0,0.00016999,2]
[399733532,1766641852630,-500.0,0.00016999,2]
[399733533,1766641852640,-500.0,0.00016999,2]
[399733534,1766641852651,-500.0,0.00016999,2]
[399733535,1766641852661,-514.26394542,0.00016999,2]
[399733536,1766641852671,-500.0,0.00016999,2]
[399733537,1766641852681,-500.0,0.00016999,2]
[399733538,1766641852691,-500.0,0.00016999,2]
[399733539,1766641852701,-500.0,0.00016999,2]
[399733540,1766641852712,-500.0,0.00016999,2]
[399733541,1766641852722,-500.0,0.00016999,2]
[399733542,1766641852732,-500.0,0.00016999,2]
[399733543,1766641852743,-500.0,0.00016999,2]
[399733544,1766641852754,-500.0,0.00016999,2]
[399733545,1766641852765,-500.0,0.00016999,2]
[399733546,1766641852776,-501.46865736,0.00016999,2]
[399733547,1766641852786,-500.0,0.00016999,2]
[399733548,1766641852796,-500.0,0.00016999,2]
[399733549,1766641852806,-500.0,0.00016999,2]
[399733550,1766641852817,-500.0,0.00016999,2]
[399733551,1766641852827,-500.0,0.00016999,2]
[399733552,1766641852838,-500.0,0.00016999,2]
[399733553,1766641852847,-500.0,0.00016999,2]
[399733554,1766641852857,-500.0,0.00016999,2]
[399733555,1766641852867,-500.0,0.00016999,2]
[399733556,1766641852878,-500.0,0.00016999,2]
[399733557,1766641852887,-500.0,0.00016999,2]
[399733558,1766641852897,-500.0,0.00016999,2]
[399733559,1766641852907,-500.0,0.00016999,2]
[399733560,1766641852917,-500.0,0.00016999,2]
[399733561,1766641852927,-313.70462567,0.00016999,2]
[399733562,1766641852937,-500.0,0.00016999,2]
[399733563,1766641852947,-500.0,0.00016999,2]
[399733564,1766641852957,-505.82761911,0.00016999,2]
[399733565,1766641852968,-500.0,0.00016999,2]
[399733566,1766641852978,-500.0,0.00016999,2]
[399733567,1766641852987,-644.18528061,0.00016999,2]
[399733568,1766641852998,-521.79,0.00016999,2]
[399733569,1766641853008,-521.79,0.00016999,2]
[399733570,1766641853018,-521.79,0.00016999,2]
[399733571,1766641853028,-521.79,0.00016999,2]
[399733572,1766641853097,-521.79,0.00016999,2]
[399733573,1766641853108,-521.79,0.00016999,2]
[399733574,1766641853119,-521.79,0.00016999,2]
[399733575,1766641853129,-521.79,0.00016999,2]
[399733576,1766641853140,-521.79,0.00016999,2]
[399733577,1766641853151,-521.79,0.00016999,2]
[399733578,1766641853161,-521.79,0.00016999,2]
[399733579,1766641853171,-521.79,0.00016999,2]
[399733580,1766641853181,-521.88956399,0.00016999,2]
[399733581,1766641853191,-500.0,0.00016999,2]
[399733582,1766641853201,-325.50708254,0.00016999,2]
[399733583,1766641853211,-564.85,0.00016999,2]
[399733584,1766641853222,-564.85,0.00016999,2]
[399733585,1766641853232,-564.85,0.00016999,2]
[399733586,1766641853242,-564.85,0.00016999,2]
[399733587,1766641853254,-564.85,0.00016999,2]
[399733588,1766641853264,-564.85,0.00016999,2]
[399733589,1766641853273,-564.85,0.00016999,2]
[399733590,1766641853283,-564.85,0.00016999,2]
[399733591,1766641853293,-564.85,0.00016999,2]
[399733592,1766641853303,-564.85,0.00016999,2]
[399733593,1766641853312,-564.85,0.00016999,2]
[399733594,1766641853323,-564.85,0.00016999,2]
[399733595,1766641853333,-564.96830899,0.00016999,2]
[399733596,1766641853342,-300.0,0.00016999,2]
[399733597,1766641853352,-300.0,0.00016999,2]
[399733598,1766641853362,-666.0,0.00016999,2]
[399733599,1766641853371,-765.26,0.00016999,2]
[399733600,1766641853381,-765.26,0.00016999,2]
[399733601,1766641853393,-765.26,0.00016999,2]
[399733602,1766641853403,-765.26,0.00016999,2]
[399733603,1766641853413,-765.26,0.00016999,2]
[399733604,1766641853423,-765.26,0.00016999,2]
[399733605,1766641853434,-765.26,0.00016999,2]
[399733606,1766641853444,-765.26,0.00016999,2]
[399733607,1766641853454,-765.26,0.00016999,2]
[399733608,1766641853464,-765.26,0.00016999,2]
[399733609,1766641853475,-765.26,0.00016999,2]
[399733610,1766641853485,-765.26,0.00016999,2]
[399733611,1766641853494,-765.26,0.00016999,2]
[399733612,1766641853504,-765.30911146,0.00016999,2]
[399733613,1766641853514,-500.0,0.00016999,2]
[399733614,1766641853524,-500.0,0.00016999,2]
[399733615,1766641853534,-177.66511868,0.00016999,2]
[399733616,1766641853543,-300.0,0.00016999,2]
[399733617,1766641853552,-508.51346411,0.00016999,2]
[399733618,1766641853563,-4056791.72506774,0.00017,2]
[399733619,1766641853871,-8968.96,0.00017,2]
[399733620,1766641853883,-6057.14710165,0.00017,2]
[399733621,1766641853895,-2175.02066338,0.00017,2]
[399733622,1766641853908,-1109.86639144,0.00017,2]
[399733623,1766641853937,-151.0,0.00014305,2]
[399733624,1766641853947,-848.99995,0.00017,2]
[399733625,1766641853959,-1103.36438192,0.00017,2]
[399733626,1766641854910,-1.7e-07,0.00017,2]
[399733627,1766641854926,-4185112.8503478,0.00017,2]
[399733628,1766641854936,-3194825.16407333,0.00017,2]
[399733629,1766641854946,-150.0,0.00017,2]
[399733630,1766641854955,-200.0,0.00017,2]
[399733631,1766641854965,-151.0,0.00017,2]
[399733632,1766641854974,-151.0,0.00017,2]
[399733633,1766641854985,-151.0,0.00017,2]
[399733634,1766641854995,-151.0,0.00017,2]
[399733635,1766641855004,-151.0,0.00017,2]
[399733636,1766641855013,-173.381213,0.00017,2]
[399733637,1766641855023,-152.708763,0.00017,2]
[399733638,1766641855032,-151.0,0.00017,2]
[399733639,1766641855042,-151.0,0.00017,2]
[399733640,1766641855052,-151.0,0.00017,2]
[399733641,1766641855062,-258.615269,0.00017,2]
[399733642,1766641855072,-258.615269,0.00017,2]
[399733643,1766641855082,-258.615269,0.00017,2]
[399733644,1766641855091,-258.615269,0.00017,2]
[399733645,1766641855107,-151.0,0.00017,2]
[399733646,1766641855118,-151.0,0.00017,2]
[399733647,1766641855127,-151.0,0.00017,2]
[399733648,1766641855138,-385.26348,0.00017,2]
[399733649,1766641855147,-385.26348,0.00017,2]
[399733650,1766641855157,-159.76616,0.00017,2]
[399733651,1766641855166,-385.26348,0.00017,2]
[399733652,1766641855176,-159.76616,0.00017,2]
[399733653,1766641855185,-385.26348,0.00017,2]
[399733654,1766641855195,-159.76616,0.00017,2]
[399733655,1766641855204,-159.76616,0.00017,2]
[399733656,1766641855214,-151.0,0.00017,2]
[399733657,1766641855224,-151.0,0.00017,2]
[399733658,1766641855234,-151.0,0.00017,2]
[399733659,1766641855244,-151.0,0.00017,2]
[399733660,1766641855254,-151.0,0.00017,2]
[399733661,1766641855264,-151.0,0.00017,2]
[399733662,1766641855274,-151.0,0.00017,2]
[399733663,1766641855284,-201.01484,0.00017,2]
[399733664,1766641855293,-766.470861,0.00017,2]
[399733665,1766641855303,-766.470861,0.00017,2]
[399733666,1766641855313,-766.470861,0.00017,2]
[399733667,1766641855323,-766.470861,0.00017,2]
[399733668,1766641855332,-151.0,0.00017,2]
[399733669,1766641855342,-151.0,0.00017,2]
[399733670,1766641855352,-151.0,0.00017,2]
[399733671,1766641855362,-506.79834017,0.00017,2]
[399733672,1766641855371,-299.0,0.00017068,2]
[399733673,1766641855380,-15044.79,0.0001716,2]
[399733674,1766641855390,-200.0,0.00017185,2]
[399733675,1766641855404,-373.0,0.0001722,2]
[399733676,1766641855413,-162.74,0.00017312,2]
[399733677,1766641855423,-500.0,0.0001737,2]
[399733678,1766641855432,-166.66,0.0001748,2]
[399733679,1766641855442,-500.0,0.00017521,2]
[399733680,1766641855451,-1000.0,0.00017521,2]
[399733681,1766641855462,-1004.42223695,0.00017521,2]
[399733682,1766641855473,-466.57897047,0.00017521,2]
[399733683,1766641855483,-1000.0,0.00017521,2]
[399733684,1766641855494,-437.14765558,0.00017521,2]
[399733685,1766641855503,-1000.0,0.00017521,2]
[399733686,1766641855512,-600.01,0.00017534,2]
[399733687,1766641855522,-600.0,0.00017534,2]
[399733688,1766641855532,-403.0,0.000177,5]
[399733689,1766641855540,-2654.97,0.0001774,2]
[399733690,1766641855550,-5393.24,0.0001779,2]
[399733691,1766641855560,-500.0,0.00017808,2]
[399733692,1766641855570,-500.0,0.00017835,2]
[399733693,1766641855579,-162.00371102,0.00017863,2]
[399733694,1766641855589,-500.0,0.00017973,2]
[399733695,1766641855599,-598.60555363,0.00017973,2]
[399733696,1766641855610,-500.0,0.00017973,2]
[399733697,1766641855620,-500.0,0.00017973,2]
[399733698,1766641855629,-648.46173605,0.00017973,2]
[399733699,1766641855639,-515.54072242,0.00017973,2]
[399733700,1766641855649,-500.0,0.00017973,2]
[399733701,1766641855659,-500.0,0.00017973,2]
[399733702,1766641855668,-500.0,0.00017973,2]
[399733703,1766641855678,-500.0,0.00017973,2]
[399733704,1766641855688,-500.0,0.00017973,2]
[399733705,1766641855698,-500.0,0.00017973,2]
[399733706,1766641855708,-500.0,0.00017973,2]
[399733707,1766641855719,-559.28446362,0.00017973,2]
[399733708,1766641855729,-500.0,0.00017973,2]
[399733709,1766641855739,-349.16265713,0.00017973,2]
[399733710,1766641855749,-500.0,0.00017973,2]
[399733711,1766641855759,-500.0,0.00017973,2]
[399733712,1766641855770,-500.0,0.00017973,2]
[399733713,1766641855781,-500.0,0.00017973,2]
[399733714,1766641855795,-500.0,0.00017973,2]
[399733715,1766641855805,-164.92711325,0.00017973,2]
[399733716,1766641855817,-500.0,0.00017973,2]
[399733717,1766641855827,-500.0,0.00017973,2]
[399733718,1766641855837,-500.0,0.00017973,2]
[399733719,1766641855853,-207.3850141,0.00017973,2]
[399733720,1766641855862,-500.0,0.00017973,2]
[399733721,1766641855873,-500.0,0.00017973,2]
[399733722,1766641855882,-500.0,0.00017973,2]
[399733723,1766641855892,-500.0,0.00017973,2]
[399733724,1766641855902,-500.0,0.00017973,2]
[399733725,1766641855912,-500.0,0.00017973,2]
[399733726,1766641855922,-500.0,0.00017973,2]
[399733727,1766641855932,-500.0,0.00017973,2]
[399733728,1766641855942,-500.0,0.00017973,2]
[399733729,1766641855952,-166.66,0.0001799,2]
[399733730,1766641855962,-300.0,0.00017999,2]
[399733731,1766641855972,-300.0,0.00017999,2]
[399733732,1766641855982,-666.0,0.00017999,2]
[399733733,1766641855992,-252419.84777964,0.00018,2]
[399733734,1766641856002,-505.67621891,0.00018068,2]
[399733735,1766641856011,-1505.95243998,0.00018068,2]
[399733736,1766641856021,-600.0,0.00018082,2]
[399733737,1766641856031,-309.46072033,0.00018168,2]
[399733738,1766641856041,-801.25612123,0.00018215,2]
[399733739,1766641856051,-2000.0,0.000184,2]
[399733740,1766641856061,-1000.0,0.00018521,2]
[399733741,1766641856071,-600.0,0.0001863,2]
[399733742,1766641856081,-151.02,0.000188,2]
[399733743,1766641856091,-151.02,0.000188,2]
[399733744,1766641856101,-151.02,0.000188,2]
[399733745,1766641856111,-151.02,0.000188,2]
[399733746,1766641856120,-151.02,0.000188,2]
[399733747,1766641856130,-151.02,0.000188,2]
[399733748,1766641856139,-151.02,0.000188,2]
[399733749,1766641856149,-151.02,0.000188,2]
[399733750,1766641856161,-151.02,0.000188,2]
[399733751,1766641856170,-151.02,0.000188,2]
[399733752,1766641856180,-151.02,0.000188,2]
[399733753,1766641856191,-300.0,0.00019,2]
[399733754,1766641856200,-1409.08096258,0.00019,2]
[399733755,1766641856210,-1409.08096258,0.00019,2]
[399733756,1766641856220,-18052.4854721,0.00019065,2]
[399733757,1766641856230,-151.0,0.00019178,2]
[399733758,1766641856240,-442.494396,0.00019178,2]
[399733759,1766641856250,-442.494396,0.00019178,2]
[399733760,1766641856260,-442.494396,0.00019178,2]
[399733761,1766641856270,-442.494396,0.00019178,2]
[399733762,1766641856280,-626.04,0.00019178,2]
[399733763,1766641856291,-257.1,0.00019809,2]
[399733764,1766641856301,-801.25612123,0.00019865,2]
[399733765,1766641856311,-300.0,0.00019999,2]
[399733766,1766641856321,-666.0,0.00019999,2]
[399733767,1766641856331,-200.0,0.0002,2]
[399733768,1766641856342,-17236.248862,0.0002,2]
[399733769,1766641856352,-3088.33,0.0002,2]
[399733770,1766641856361,-4984.09272893,0.0002,4]
[399733771,1766641856375,-424.61229598,0.0002,4]
[399733772,1766641856437,-674.17027964,0.00016484,2]
[399733773,1766641856447,-68.63843941,0.0002,4]
[399733774,1766641856738,-2822.65653568,0.0002,4]
[399733775,1766641856748,-3874.85299278,0.0002,2]
[399733776,1766641856768,-75.14700722,0.0002,2]
[399733777,1766641856778,-1276.93975989,0.0002,2]
[399733778,1766641856795,-49699.31148721,0.0002,2]
[399733779,1766641856871,510.53663239,0.0001141,2]
[399733780,1766641857067,-1160.0,0.00012052,2]
[399733781,1766641857076,-251.0,0.00012076,2]
[399733782,1766641857087,-1780.0,0.000121,2]
[399733783,1766641857097,-647.64415084,0.0002,2]
[399733784,1766641857110,-709.04108737,0.0002,2]
[399733785,1766641857132,-5570.45453968,0.0002,2]
[399733786,1766641857143,-1183.9021386,0.0002,2]
[399733787,1766641857266,-1203.37088605,0.0002,2]
[399733788,1766641857288,-611.68963455,0.0002,2]
[399733789,1766641857300,-433.02848958,0.0002,2]
[399733790,1766641857312,-274.18,0.0002,2]
[399733791,1766641857324,-1185.3213471,0.0002,2]
[399733792,1766641857335,-2245.3092668,0.0002,2]
[399733793,1766641857347,-404.72580003,0.0002,2]
[399733794,1766641857358,-745.7042,0.0002,2]
[399733795,1766641857384,-3207.86620841,0.0002,2]
[399733796,1766641857398,-3429.32055743,0.0002,2]
[399733797,1766641857410,-929.97801245,0.0002,2]
[399733798,1766641857420,-7266.69110292,0.0002,2]
[399733799,1766641857430,-1290.3917866,0.0002,2]
[399733800,1766641857442,-1041.56180137,0.0002,2]
[399733801,1766641857451,-2854.30785249,0.0002,2]
[399733802,1766641857461,-12883.92021524,0.0002,2]
[399733803,1766641857474,-150.0,0.0002,2]
[399733804,1766641857484,-150.0,0.0002,2]
[399733805,1766641857495,-194.29425852,0.0002,2]
[399733806,1766641857505,-8720.0,0.0002001,2]
[399733807,1766641857514,-300.0,0.00020097,2]
[399733808,1766641857523,-675.6926152,0.00020097,2]
[399733809,1766641857533,-51913.9857526,0.00020098,2]
[399733810,1766641857543,-1003.57426165,0.000201,2]
[399733811,1766641857553,-1000.0,0.00020187,2]
[399733812,1766641857564,-192.32,0.00020548,2]
[399733813,1766641857573,-21448.78,0.00020548,2]
[399733814,1766641857583,-1021.64601503,0.0002059,2]
[399733815,1766641857593,-22581.30984101,0.000207,2]
[399733816,1766641857603,-230.20839932,0.00020793,30]
[399733817,1766641857612,-11583.5759549,0.00020882,2]
[399733818,1766641857622,-500.0,0.00020959,2]
[399733819,1766641857632,-350.0,0.00021,2]
[399733820,1766641857642,-6244.15459028,0.00021,2]
[399733821,1766641857655,-13054.6975725,0.00021,2]
[399733822,1766641857667,-423.74647872,0.00021,2]
[399733823,1766641857679,-277.4013585,0.00021,2]
[399733824,1766641857689,-1189.19437202,0.00021,2]
[399733825,1766641857698,-196.29332913,0.00021,2]
[399733826,1766641857708,-5624.89,0.00021068,2]
[399733827,1766641857718,-300.0,0.00021311,2]
[399733828,1766641857728,-1000.0,0.00021387,30]
[399733829,1766641857738,-221.3993572,0.000215,2]
[399733830,1766641857748,-801.25612123,0.00021515,2]
[399733831,1766641857758,-18052.4854721,0.00021548,2]
[399733832,1766641857767,-393.8571673,0.00021615,2]
[399733833,1766641857777,-578.20924308,0.00021615,2]
[399733834,1766641857788,-574.12855637,0.00021615,2]
[399733835,1766641857798,-500.0,0.00021615,2]
[399733836,1766641857808,-500.0,0.00021615,2]
[399733837,1766641857819,-500.0,0.00021615,2]
[399733838,1766641857828,-500.0,0.00021615,2]
[399733839,1766641857839,-500.0,0.00021615,2]
[399733840,1766641857849,-500.0,0.00021615,2]
[399733841,1766641857859,-500.0,0.00021615,2]
[399733842,1766641857870,-500.0,0.00021615,2]
[399733843,1766641857880,-500.0,0.00021615,2]
[399733844,1766641857890,-500.0,0.00021615,2]
[399733845,1766641857901,-500.0,0.00021615,2]
[399733846,1766641857910,-500.0,0.00021615,2]
[399733847,1766641857920,-1500.0,0.00021615,2]
[399733848,1766641857930,-500.0,0.00021615,2]
[399733849,1766641857940,-250.0,0.00021615,2]
[399733850,1766641857950,-500.0,0.00021615,2]
[399733851,1766641857959,-1500.0,0.00021615,2]
[399733852,1766641857969,-500.0,0.00021615,2]
[399733853,1766641857979,-250.0,0.00021615,2]
[399733854,1766641857989,-500.0,0.00021615,2]
[399733855,1766641857999,-1500.0,0.00021615,2]
[399733856,1766641858009,-250.0,0.00021615,2]
[399733857,1766641858020,-1500.0,0.00021615,2]
[399733858,1766641858030,-500.0,0.00021615,2]
[399733859,1766641858039,-250.0,0.00021615,2]
[399733860,1766641858051,-322.6107,0.00021615,2]
[399733861,1766641858061,-1500.0,0.00021615,2]
[399733862,1766641858071,-500.0,0.00021615,2]
[399733863,1766641858082,-250.0,0.00021615,2]
[399733864,1766641858093,-1500.0,0.00021615,2]
[399733865,1766641858103,-250.0,0.00021615,2]
[399733866,1766641858114,-500.0,0.00021615,2]
[399733867,1766641858125,-1500.0,0.00021615,2]
[399733868,1766641858136,-250.0,0.00021615,2]
[399733869,1766641858146,-500.0,0.00021615,2]
[399733870,1766641858156,-250.0,0.00021615,2]
[399733871,1766641858168,-500.0,0.00021615,2]
[399733872,1766641858178,-250.0,0.00021615,2]
[399733873,1766641858189,-1500.0,0.00021615,2]
[399733874,1766641858199,-500.0,0.00021615,2]
[399733875,1766641858210,-500.0,0.00021615,2]
[399733876,1766641858220,-250.0,0.00021615,2]
[399733877,1766641858230,-1500.0,0.00021615,2]
[399733878,1766641858241,-534.00951842,0.00021615,2]
[399733879,1766641858251,-1500.0,0.00021615,2]
[399733880,1766641858262,-250.0,0.00021615,2]
[399733881,1766641858273,-1500.0,0.00021615,2]
[399733882,1766641858283,-200.0,0.00021615,2]
[399733883,1766641858292,-250.0,0.00021615,2]
[399733884,1766641858302,-207.4,0.00021615,2]
[399733885,1766641858313,-250.0,0.00021615,2]
[399733886,1766641858323,-250.0,0.00021615,2]
[399733887,1766641858332,-215.0738,0.00021615,2]
[399733888,1766641858342,-250.0,0.00021615,2]
[399733889,1766641858355,-250.0,0.00021615,2]
[399733890,1766641858365,-223.0315306,0.00021615,2]
[399733891,1766641858375,-250.0,0.00021615,2]
[399733892,1766641858385,-250.0,0.00021615,2]
[399733893,1766641858397,-231.28369723,0.00021615,2]
[399733894,1766641858408,-250.0,0.00021615,2]
[399733895,1766641858418,-250.0,0.00021615,2]
[399733896,1766641858428,-239.84119403,0.00021615,2]
[399733897,1766641858439,-250.0,0.00021615,2]
[399733898,1766641858449,-250.0,0.00021615,2]
[399733899,1766641858459,-248.71531821,0.00021615,2]
[399733900,1766641858473,-250.0,0.00021615,2]
[399733901,1766641858483,-250.0,0.00021615,2]
[399733902,1766641858493,-257.91778498,0.00021615,2]
[399733903,1766641858504,-250.0,0.00021615,2]
[399733904,1766641858516,-250.0,0.00021615,2]
[399733905,1766641858526,-267.46074303,0.00021615,2]
[399733906,1766641858536,-250.0,0.00021615,2]
[399733907,1766641858547,-250.0,0.00021615,2]
[399733908,1766641858557,-277.35679052,0.00021615,2]
[399733909,1766641858567,-250.0,0.00021615,2]
[399733910,1766641858577,-250.0,0.00021615,2]
[399733911,1766641858587,-172.49491964,0.00021615,2]
[399733912,1766641858598,-1555.5,0.00021615,2]
[399733913,1766641858608,-250.0,0.00021615,2]
[399733914,1766641858619,-1500.0,0.00021615,2]
[399733915,1766641858629,-282.85294632,0.00021615,2]
[399733916,1766641858639,-1500.0,0.00021615,2]
[399733917,1766641858651,-1500.0,0.00021615,2]
[399733918,1766641858661,-1500.0,0.00021615,2]
[399733919,1766641858672,-1500.0,0.00021615,2]
[399733920,1766641858681,-1500.0,0.00021615,2]
[399733921,1766641858692,-1500.0,0.00021615,2]
[399733922,1766641858703,-1500.0,0.00021615,2]
[399733923,1766641858713,-1500.0,0.00021615,2]
[399733924,1766641858722,-272.00956049,0.00021615,2]
[399733925,1766641858732,-620.0,0.00021615,2]
[399733926,1766641858742,-5000.0,0.00021918,2]
[399733927,1766641858751,-3002.76,0.00021918,2]
[399733928,1766641858762,-500.0,0.00021918,2]
[399733929,1766641858772,-500.0,0.00021918,2]
[399733930,1766641858781,-500.0,0.00021918,2]
[399733931,1766641858791,-500.0,0.00021918,2]
[399733932,1766641858801,-500.0,0.00021918,2]
[399733933,1766641858811,-500.0,0.00021918,2]
[399733934,1766641858820,-500.0,0.00021918,2]
[399733935,1766641858830,-500.0,0.00021918,2]
[399733936,1766641858840,-500.0,0.00021918,2]
[399733937,1766641858850,-500.0,0.00021918,2]
[399733938,1766641858861,-500.0,0.00021918,2]
[399733939,1766641858870,-500.0,0.00021918,2]
[399733940,1766641858880,-500.0,0.00021918,2]
[399733941,1766641858889,-500.0,0.00021918,2]
[399733942,1766641858899,-215.43392194,0.00021918,2]
[399733943,1766641858908,-500.0,0.00021918,2]
[399733944,1766641858918,-500.0,0.00021918,2]
[399733945,1766641858928,-500.0,0.00021918,2]
[399733946,1766641858937,-500.0,0.00021918,2]
[399733947,1766641858947,-500.0,0.00021918,2]
[399733948,1766641858956,-500.0,0.00021918,2]
[399733949,1766641858966,-500.0,0.00021918,2]
[399733950,1766641858976,-438.90529748,0.00021918,2]
[399733951,1766641858987,-153.19346339,0.00021918,2]
[399733952,1766641858996,-150.0,0.00021973,2]
[399733953,1766641859005,-1000.0,0.0002198,30]
[399733954,1766641859015,-300.0,0.00021999,2]
[399733955,1766641859026,-259.69,0.00022,14]
[399733956,1766641859036,-29847.07,0.00022,7]
[399733957,1766641859047,-507.35,0.00022,7]
[399733958,1766641859057,-2000.0,0.000221,2]
[399733959,1766641859068,-595.37131296,0.00022163,2]
[399733960,1766641859078,-1613.0535,0.00022163,2]
[399733961,1766641859088,-152.40600789,0.00022484,2]
[399733962,1766641859099,-250.0,0.00022521,2]
[399733963,1766641859110,-1000.0,0.00022573,30]
[399733964,1766641859120,-617.40005154,0.00022711,2]
[399733965,1766641859130,-365.1354949,0.00022711,2]
[399733966,1766641859141,-334.5472959,0.00022984,2]
[399733967,1766641859151,-287.61899177,0.00022984,2]
[399733968,1766641859161,-642.94,0.00022984,2]
[399733969,1766641859171,-400.0,0.00023,2]
[399733970,1766641859182,-235.22228614,0.00023066,4]
[399733971,1766641859193,-350.0,0.00023068,2]
[399733972,1766641859203,-856.57179158,0.0002307,2]
[399733973,1766641859213,-467.93106476,0.00023093,2]
[399733974,1766641859223,-544.9,0.00023103,2]
[399733975,1766641859234,-523.42,0.00023112,2]
[399733976,1766641859244,-1000.0,0.00023166,30]
[399733977,1766641859254,-640.24385345,0.00023259,2]
[399733978,1766641859264,-530.0,0.00023589,2]
[399733979,1766641859275,-450.0,0.00023616,2]
[399733980,1766641859285,-1000.0,0.0002376,30]
[399733981,1766641859295,-663.93287602,0.00023807,2]
[399733982,1766641859306,-253.42791538,0.00024,2]
[399733983,1766641859316,-18052.4854721,0.00024032,2]
[399733984,1766641859327,-150.63727955,0.00024164,2]
[399733985,1766641859337,-1000.0,0.00024353,30]
[399733986,1766641859348,-346.92554585,0.00024353,2]
[399733987,1766641859358,-298.26089446,0.00024353,2]
[399733988,1766641859368,-666.72878,0.00024353,2]
[399733989,1766641859378,-672.33999994,0.00024354,2]
[399733990,1766641859388,-428.23447176,0.00024355,2]
[399733991,1766641859401,-3189.6471417,0.000246,2]
[399733992,1766641859415,-2183.75458493,0.000246,2]
[399733993,1766641859577,510.53663239,0.00011509,2]
[399733994,1766641912580,-275.6584545,0.00010669,2]
[399733995,1766641915802,-194.10623019,0.00010669,2]
[399733996,1766641942082,-30.23531531,0.00010669,2]
[399733997,1766641942112,-230.41963182,0.0001141,2]
[399733998,1766641945067,-160.75809482,0.0001141,2]
[399733999,1766641946626,-187.28530058,0.0001141,2]
[399734000,1766641948976,-164.77834246,0.0001141,2]
[399734001,1766641952221,-236.00361132,0.0001141,2]
[399734002,1766641954858,-303.83026447,0.00011409,2]
[399734003,1766641958023,-196.16973553,0.00011409,2]
[399734004,1766641958048,-97.28712819,0.00011409,2]
[399734005,1766641960742,-166.53162096,0.00011408,2]